[Event "Titled Tuesday Blitz December 06 Early 2022"]
[White "Sztokbant, Bernardo Vainzoff"]
[Black "Mrudul Dehankar"]
[WhiteFideId "2115956"]
[BlackFideId "25096990"]
[WhiteElo "2222"]
[BlackElo "2139"]
[Result "1-0"]
[Round "06"]
[TimeControl "180+1"]
[Date "2022.12.07"]
[WhiteClock "0:01:03"]
[BlackClock "0:00:01"]

1. d4 {[%clk 0:03:00]}  Nf6 {[%clk 0:02:53]} 2. c4 {[%clk 0:03:01]}  e6 {[%clk 0:02:51]} 3. Nf3 {[%clk 0:03:00]}  Bb4+ {[%clk 0:02:50]} 4. Bd2 {[%clk 0:03:00]}  Qe7 {[%clk 0:02:48]} 5. g3 {[%clk 0:02:59]}  Bxd2+ {[%clk 0:02:45]} 6. Qxd2 {[%clk 0:02:59]}  Nc6 {[%clk 0:02:43]} 7. Bg2 {[%clk 0:02:58]}  Ne4 {[%clk 0:02:33]} 8. Qc1 {[%clk 0:02:56]}  d5 {[%clk 0:02:27]} 9. O-O {[%clk 0:02:55]}  O-O {[%clk 0:02:26]} 10. Nc3 {[%clk 0:02:53]}  Nf6 {[%clk 0:02:11]} 11. cxd5 {[%clk 0:02:46]}  exd5 {[%clk 0:02:10]} 12. Qf4 {[%clk 0:02:42]}  Re8 {[%clk 0:01:48]} 13. Rac1 {[%clk 0:02:42]}  Be6 {[%clk 0:01:45]} 14. a3 {[%clk 0:02:34]}  Na5 {[%clk 0:01:40]} 15. Nb5 {[%clk 0:02:30]}  c6 {[%clk 0:01:19]} 16. Nc7 {[%clk 0:02:30]}  Nh5 {[%clk 0:01:12]} 17. Qe5 {[%clk 0:02:28]}  f6 {[%clk 0:01:09]} 18. Qxe6+ {[%clk 0:02:06]}  Qxe6 {[%clk 0:01:08]} 19. Nxe6 {[%clk 0:02:01]}  Rxe6 {[%clk 0:01:08]} 20. e3 {[%clk 0:01:59]}  g6 {[%clk 0:00:56]} 21. Nd2 {[%clk 0:01:58]}  b6 {[%clk 0:00:30]} 22. b4 {[%clk 0:01:58]}  Nb7 {[%clk 0:00:30]} 23. Rxc6 {[%clk 0:01:58]}  Rxc6 {[%clk 0:00:21]} 24. Bxd5+ {[%clk 0:01:58]}  Kf8 {[%clk 0:00:21]} 25. Bxc6 {[%clk 0:01:58]}  Rb8 {[%clk 0:00:21]} 26. Rc1 {[%clk 0:01:51]}  Ke7 {[%clk 0:00:21]} 27. Bf3 {[%clk 0:01:48]}  Kd8 {[%clk 0:00:17]} 28. Bxh5 {[%clk 0:01:47]}  gxh5 {[%clk 0:00:17]} 29. Kg2 {[%clk 0:01:43]}  Nd6 {[%clk 0:00:17]} 30. Kf3 {[%clk 0:01:42]}  a5 {[%clk 0:00:17]} 31. Ne4 {[%clk 0:01:40]}  Nb5 {[%clk 0:00:15]} 32. a4 {[%clk 0:01:31]}  Nc7 {[%clk 0:00:13]} 33. b5 {[%clk 0:01:20]}  Nd5 {[%clk 0:00:12]} 34. Rc6 {[%clk 0:01:16]}  Ke7 {[%clk 0:00:08]} 35. Nd6 {[%clk 0:01:08]}  Rd8 {[%clk 0:00:01]} 36. Nf5+ {[%clk 0:01:07]}  Kf7 {[%clk 0:00:01]} 37. Ke4 {[%clk 0:01:03]} 1-0


[Site "https://www.chess.com"]

[Event "Titled Tuesday Blitz December 06 Early 2022"]
[White "Tarlabasi, Emirhan"]
[Black "Herman, Daniel"]
[WhiteFideId "6350275"]
[BlackFideId "30935008"]
[WhiteElo "2200"]
[BlackElo "1897"]
[Result "1-0"]
[Round "06"]
[TimeControl "180+1"]
[Date "2022.12.07"]
[WhiteClock "0:01:41"]
[BlackClock "0:00:18"]

1. Nf3 {[%clk 0:03:00]}  d5 {[%clk 0:02:57]} 2. c4 {[%clk 0:03:01]}  e6 {[%clk 0:02:55]} 3. b3 {[%clk 0:03:02]}  Nf6 {[%clk 0:02:54]} 4. Bb2 {[%clk 0:03:02]}  Bd6 {[%clk 0:02:53]} 5. g3 {[%clk 0:03:03]}  O-O {[%clk 0:02:52]} 6. Bg2 {[%clk 0:03:03]}  Qe7 {[%clk 0:02:52]} 7. O-O {[%clk 0:03:04]}  Nbd7 {[%clk 0:02:49]} 8. d4 {[%clk 0:03:04]}  c6 {[%clk 0:02:45]} 9. Nc3 {[%clk 0:03:04]}  Ba3 {[%clk 0:02:44]} 10. Qc2 {[%clk 0:03:04]}  a5 {[%clk 0:02:41]} 11. Rfe1 {[%clk 0:03:03]}  Bxb2 {[%clk 0:02:34]} 12. Qxb2 {[%clk 0:03:04]}  b6 {[%clk 0:02:32]} 13. e4 {[%clk 0:03:03]}  dxe4 {[%clk 0:02:32]} 14. Nxe4 {[%clk 0:03:04]}  Nxe4 {[%clk 0:02:26]} 15. Rxe4 {[%clk 0:03:04]}  Nf6 {[%clk 0:02:26]} 16. Re2 {[%clk 0:03:03]}  Bb7 {[%clk 0:02:20]} 17. Ne5 {[%clk 0:03:04]}  c5 {[%clk 0:02:16]} 18. d5 {[%clk 0:03:04]}  Qc7 {[%clk 0:02:04]} 19. dxe6 {[%clk 0:03:02]}  fxe6 {[%clk 0:02:04]} 20. Bxb7 {[%clk 0:02:51]}  Qxb7 {[%clk 0:02:05]} 21. Rd1 {[%clk 0:02:51]}  Rad8 {[%clk 0:02:04]} 22. Red2 {[%clk 0:02:51]}  Qc7 {[%clk 0:01:57]} 23. Rxd8 {[%clk 0:02:33]}  Rxd8 {[%clk 0:01:58]} 24. Rxd8+ {[%clk 0:02:34]}  Qxd8 {[%clk 0:01:59]} 25. Qe2 {[%clk 0:02:34]}  Qd4 {[%clk 0:01:50]} 26. h4 {[%clk 0:02:16]}  Ne4 {[%clk 0:01:45]} 27. Nf3 {[%clk 0:02:11]}  Qa1+ {[%clk 0:01:39]} 28. Kg2 {[%clk 0:02:11]}  Qb1 {[%clk 0:01:40]} 29. Nd2 {[%clk 0:02:04]}  Nxd2 {[%clk 0:01:35]} 30. Qxe6+ {[%clk 0:02:04]}  Kf8 {[%clk 0:01:34]} 31. Qd6+ {[%clk 0:02:03]}  Kf7 {[%clk 0:01:29]} 32. Qxd2 {[%clk 0:02:03]}  Qe4+ {[%clk 0:01:26]} 33. Kh2 {[%clk 0:02:03]}  Ke6 {[%clk 0:01:22]} 34. Qe3 {[%clk 0:02:01]}  Ke5 {[%clk 0:01:02]} 35. Qxe4+ {[%clk 0:01:57]}  Kxe4 {[%clk 0:01:02]} 36. Kg2 {[%clk 0:01:58]}  Kd3 {[%clk 0:00:57]} 37. g4 {[%clk 0:01:57]}  Kc2 {[%clk 0:00:56]} 38. f4 {[%clk 0:01:57]}  Kb2 {[%clk 0:00:51]} 39. f5 {[%clk 0:01:57]}  Kxa2 {[%clk 0:00:50]} 40. g5 {[%clk 0:01:58]}  Kxb3 {[%clk 0:00:49]} 41. f6 {[%clk 0:01:58]}  gxf6 {[%clk 0:00:48]} 42. gxf6 {[%clk 0:01:59]}  a4 {[%clk 0:00:48]} 43. f7 {[%clk 0:02:00]}  a3 {[%clk 0:00:49]} 44. f8=Q {[%clk 0:02:00]}  Kxc4 {[%clk 0:00:34]} 45. Qf7+ {[%clk 0:01:57]}  Kb4 {[%clk 0:00:32]} 46. Qxh7 {[%clk 0:01:55]}  a2 {[%clk 0:00:28]} 47. Qg7 {[%clk 0:01:53]}  c4 {[%clk 0:00:27]} 48. Qa1 {[%clk 0:01:52]}  Kb3 {[%clk 0:00:27]} 49. Kf2 {[%clk 0:01:45]}  b5 {[%clk 0:00:26]} 50. Ke2 {[%clk 0:01:46]}  b4 {[%clk 0:00:27]} 51. Kd2 {[%clk 0:01:44]}  c3+ {[%clk 0:00:23]} 52. Kc1 {[%clk 0:01:44]}  Ka3 {[%clk 0:00:18]} 53. Kc2 {[%clk 0:01:41]} 1-0


[Site "https://www.chess.com"]

[Event "Titled Tuesday Blitz December 06 Early 2022"]
[White "Tologon tegin, Semetei"]
[Black "Tsatsalashvili, Keti"]
[WhiteFideId "13800574"]
[BlackFideId "13603434"]
[WhiteElo "2264"]
[BlackElo "2220"]
[Result "1-0"]
[Round "06"]
[TimeControl "180+1"]
[Date "2022.12.07"]
[WhiteClock "0:01:15"]
[BlackClock "0:00:10"]

1. e4 {[%clk 0:02:48]}  c5 {[%clk 0:02:59]} 2. Nf3 {[%clk 0:02:48]}  d6 {[%clk 0:02:59]} 3. d4 {[%clk 0:02:48]}  cxd4 {[%clk 0:03:00]} 4. Nxd4 {[%clk 0:02:48]}  Nf6 {[%clk 0:03:01]} 5. Nc3 {[%clk 0:02:48]}  Nc6 {[%clk 0:03:00]} 6. Bg5 {[%clk 0:02:48]}  e6 {[%clk 0:03:00]} 7. Qd3 {[%clk 0:02:47]}  a6 {[%clk 0:02:58]} 8. Nxc6 {[%clk 0:02:46]}  bxc6 {[%clk 0:02:58]} 9. O-O-O {[%clk 0:02:46]}  Be7 {[%clk 0:02:52]} 10. Qg3 {[%clk 0:02:46]}  Nh5 {[%clk 0:02:12]} 11. Bxe7 {[%clk 0:02:44]}  Nxg3 {[%clk 0:02:12]} 12. Bxd8 {[%clk 0:02:44]}  Nxh1 {[%clk 0:02:12]} 13. Bb6 {[%clk 0:02:40]}  c5 {[%clk 0:02:08]} 14. Rxd6 {[%clk 0:02:35]}  O-O {[%clk 0:02:02]} 15. Bxc5 {[%clk 0:02:35]}  Bb7 {[%clk 0:02:00]} 16. Rd1 {[%clk 0:02:29]}  Rfd8 {[%clk 0:01:58]} 17. Bd3 {[%clk 0:02:29]}  Rac8 {[%clk 0:01:52]} 18. Be3 {[%clk 0:02:23]}  Nxf2 {[%clk 0:01:19]} 19. Bxf2 {[%clk 0:02:24]}  f5 {[%clk 0:01:19]} 20. exf5 {[%clk 0:02:05]}  exf5 {[%clk 0:01:19]} 21. Bxf5 {[%clk 0:02:04]}  Rxd1+ {[%clk 0:01:18]} 22. Nxd1 {[%clk 0:02:05]}  Rf8 {[%clk 0:01:07]} 23. Be6+ {[%clk 0:02:04]}  Kh8 {[%clk 0:01:07]} 24. Bh3 {[%clk 0:01:53]}  Re8 {[%clk 0:00:58]} 25. Kd2 {[%clk 0:01:49]}  Rd8+ {[%clk 0:00:55]} 26. Ke1 {[%clk 0:01:48]}  Be4 {[%clk 0:00:52]} 27. Ne3 {[%clk 0:01:47]}  a5 {[%clk 0:00:46]} 28. b3 {[%clk 0:01:46]}  a4 {[%clk 0:00:44]} 29. bxa4 {[%clk 0:01:46]}  Ra8 {[%clk 0:00:44]} 30. Bd7 {[%clk 0:01:46]}  Ra7 {[%clk 0:00:35]} 31. Bb5 {[%clk 0:01:45]}  Rc7 {[%clk 0:00:32]} 32. c4 {[%clk 0:01:44]}  Bb1 {[%clk 0:00:31]} 33. a3 {[%clk 0:01:43]}  Re7 {[%clk 0:00:25]} 34. a5 {[%clk 0:01:41]}  Be4 {[%clk 0:00:26]} 35. Kd2 {[%clk 0:01:38]}  Rf7 {[%clk 0:00:19]} 36. Bg3 {[%clk 0:01:38]}  Rf8 {[%clk 0:00:17]} 37. c5 {[%clk 0:01:34]}  Ra8 {[%clk 0:00:17]} 38. a6 {[%clk 0:01:34]}  Rd8+ {[%clk 0:00:16]} 39. Bd6 {[%clk 0:01:33]}  h5 {[%clk 0:00:13]} 40. g3 {[%clk 0:01:33]}  Kh7 {[%clk 0:00:12]} 41. h4 {[%clk 0:01:32]}  Ba8 {[%clk 0:00:12]} 42. a7 {[%clk 0:01:26]}  Rc8 {[%clk 0:00:11]} 43. Nc4 {[%clk 0:01:24]}  Rd8 {[%clk 0:00:10]} 44. Nb6 {[%clk 0:01:24]}  Bb7 {[%clk 0:00:09]} 45. a4 {[%clk 0:01:18]}  Kh6 {[%clk 0:00:10]} 46. a5 {[%clk 0:01:17]}  g5 {[%clk 0:00:10]} 47. hxg5+ {[%clk 0:01:17]}  Kxg5 {[%clk 0:00:10]} 48. a6 {[%clk 0:01:17]}  Ba8 {[%clk 0:00:09]} 49. Nxa8 {[%clk 0:01:16]}  Rxa8 {[%clk 0:00:10]} 50. Bb8 {[%clk 0:01:16]}  Kg4 {[%clk 0:00:09]} 51. Bc6 {[%clk 0:01:16]}  Rxa7 {[%clk 0:00:10]} 52. Bxa7 {[%clk 0:01:15]} 1-0


[Site "https://www.chess.com"]

[Event "Titled Tuesday Blitz December 06 Early 2022"]
[White "Vaibhav, Suri"]
[Black "Martin, Lewis"]
[WhiteFideId "5045185"]
[BlackFideId "410551"]
[WhiteElo "2510"]
[BlackElo "2145"]
[Result "1-0"]
[Round "06"]
[TimeControl "180+1"]
[Date "2022.12.07"]
[WhiteClock "0:00:18"]
[BlackClock "0:00:10"]

1. Nf3 {[%clk 0:02:55]}  c5 {[%clk 0:02:58]} 2. c4 {[%clk 0:02:52]}  Nc6 {[%clk 0:02:56]} 3. Nc3 {[%clk 0:02:50]}  Nf6 {[%clk 0:02:55]} 4. e4 {[%clk 0:02:46]}  d6 {[%clk 0:02:50]} 5. h3 {[%clk 0:02:44]}  g6 {[%clk 0:02:43]} 6. d4 {[%clk 0:02:42]}  cxd4 {[%clk 0:02:42]} 7. Nxd4 {[%clk 0:02:43]}  Bg7 {[%clk 0:02:42]} 8. Be3 {[%clk 0:02:44]}  O-O {[%clk 0:02:39]} 9. Be2 {[%clk 0:02:41]}  Bd7 {[%clk 0:02:39]} 10. O-O {[%clk 0:02:39]}  Rc8 {[%clk 0:02:37]} 11. Rc1 {[%clk 0:02:35]}  Qa5 {[%clk 0:02:26]} 12. Nb3 {[%clk 0:02:25]}  Qd8 {[%clk 0:02:20]} 13. a3 {[%clk 0:02:12]}  a6 {[%clk 0:02:07]} 14. Re1 {[%clk 0:02:09]}  Ne5 {[%clk 0:02:02]} 15. Nd2 {[%clk 0:02:08]}  Be6 {[%clk 0:01:51]} 16. Nd5 {[%clk 0:01:48]}  Nxd5 {[%clk 0:01:25]} 17. exd5 {[%clk 0:01:37]}  Bf5 {[%clk 0:01:22]} 18. f4 {[%clk 0:01:26]}  Nd3 {[%clk 0:01:20]} 19. Bxd3 {[%clk 0:01:26]}  Bxd3 {[%clk 0:01:20]} 20. Qb3 {[%clk 0:01:24]}  Bf5 {[%clk 0:01:12]} 21. g4 {[%clk 0:00:59]}  Bd7 {[%clk 0:01:11]} 22. Bb6 {[%clk 0:00:59]}  Qe8 {[%clk 0:01:10]} 23. Ne4 {[%clk 0:00:59]}  Ba4 {[%clk 0:01:00]} 24. Qa2 {[%clk 0:00:53]}  Qd7 {[%clk 0:00:53]} 25. b3 {[%clk 0:00:52]}  f5 {[%clk 0:00:48]} 26. gxf5 {[%clk 0:00:52]}  Qxf5 {[%clk 0:00:46]} 27. bxa4 {[%clk 0:00:51]}  Qxh3 {[%clk 0:00:42]} 28. Qg2 {[%clk 0:00:34]}  Qb3 {[%clk 0:00:34]} 29. a5 {[%clk 0:00:28]}  Rxc4 {[%clk 0:00:32]} 30. Rxc4 {[%clk 0:00:22]}  Qxc4 {[%clk 0:00:32]} 31. Ng5 {[%clk 0:00:22]}  Bc3 {[%clk 0:00:20]} 32. Qe4 {[%clk 0:00:19]}  Qa2 {[%clk 0:00:12]} 33. Re2 {[%clk 0:00:19]}  Qa1+ {[%clk 0:00:11]} 34. Kg2 {[%clk 0:00:20]}  Qxa3 {[%clk 0:00:11]} 35. Qxe7 {[%clk 0:00:19]}  Bxa5 {[%clk 0:00:10]} 36. Qxh7# {[%clk 0:00:18]} 1-0


[Site "https://www.chess.com"]

[Event "Titled Tuesday Blitz December 06 Early 2022"]
[White "Volkov, Maksim"]
[Black "Przybylski, Wojciech"]
[WhiteFideId "54123070"]
[BlackFideId "1117599"]
[WhiteElo "2257"]
[BlackElo "2217"]
[Result "1-0"]
[Round "06"]
[TimeControl "180+1"]
[Date "2022.12.07"]
[WhiteClock "0:00:57"]
[BlackClock "0:00:01"]

1. d4 {[%clk 0:02:56]}  Nf6 {[%clk 0:02:59]} 2. c4 {[%clk 0:02:54]}  e6 {[%clk 0:02:58]} 3. g3 {[%clk 0:02:52]}  d5 {[%clk 0:02:55]} 4. Nf3 {[%clk 0:02:52]}  Bb4+ {[%clk 0:02:54]} 5. Bd2 {[%clk 0:02:49]}  Be7 {[%clk 0:02:54]} 6. Bg2 {[%clk 0:02:49]}  O-O {[%clk 0:02:53]} 7. O-O {[%clk 0:02:48]}  Nbd7 {[%clk 0:02:54]} 8. Qc2 {[%clk 0:02:45]}  Nb6 {[%clk 0:02:53]} 9. c5 {[%clk 0:02:41]}  Nc4 {[%clk 0:02:37]} 10. Be1 {[%clk 0:02:35]}  b6 {[%clk 0:02:33]} 11. b3 {[%clk 0:02:34]}  Na5 {[%clk 0:02:32]} 12. Bxa5 {[%clk 0:02:33]}  bxa5 {[%clk 0:02:33]} 13. Nc3 {[%clk 0:02:32]}  c6 {[%clk 0:02:23]} 14. Ne5 {[%clk 0:02:30]}  Qc7 {[%clk 0:02:21]} 15. Rac1 {[%clk 0:02:10]}  Nd7 {[%clk 0:02:14]} 16. Nxd7 {[%clk 0:02:06]}  Bxd7 {[%clk 0:02:09]} 17. e4 {[%clk 0:02:06]}  Rab8 {[%clk 0:02:06]} 18. h4 {[%clk 0:01:55]}  Rb4 {[%clk 0:02:03]} 19. Qd2 {[%clk 0:01:52]}  f5 {[%clk 0:01:25]} 20. exf5 {[%clk 0:01:46]}  exf5 {[%clk 0:01:22]} 21. Ne2 {[%clk 0:01:34]}  Bf6 {[%clk 0:01:16]} 22. Rc3 {[%clk 0:01:33]}  f4 {[%clk 0:01:07]} 23. a3 {[%clk 0:01:30]}  Rbb8 {[%clk 0:00:40]} 24. Nxf4 {[%clk 0:01:30]}  Bg4 {[%clk 0:00:31]} 25. Re1 {[%clk 0:01:19]}  Qf7 {[%clk 0:00:22]} 26. Rce3 {[%clk 0:01:14]}  a4 {[%clk 0:00:20]} 27. b4 {[%clk 0:01:12]}  Bxh4 {[%clk 0:00:15]} 28. Nxd5 {[%clk 0:01:12]}  Bg5 {[%clk 0:00:13]} 29. Ne7+ {[%clk 0:01:05]}  Kh8 {[%clk 0:00:12]} 30. Nxc6 {[%clk 0:01:06]}  Rbc8 {[%clk 0:00:10]} 31. Ne5 {[%clk 0:01:05]}  Qh5 {[%clk 0:00:07]} 32. d5 {[%clk 0:01:01]}  Bxe3 {[%clk 0:00:05]} 33. Qxe3 {[%clk 0:01:01]}  Rce8 {[%clk 0:00:05]} 34. d6 {[%clk 0:00:59]}  Bc8 {[%clk 0:00:01]} 35. c6 {[%clk 0:00:57]} 1-0


[Site "https://www.chess.com"]

[Event "Titled Tuesday Blitz December 06 Early 2022"]
[White "Williams, Simon K"]
[Black "Matinian, Nikita"]
[WhiteFideId "404454"]
[BlackFideId "24129100"]
[WhiteElo "2468"]
[BlackElo "2422"]
[Result "0-1"]
[Round "06"]
[TimeControl "180+1"]
[Date "2022.12.07"]
[WhiteClock "0:00:06"]
[BlackClock "0:01:35"]

1. d4 {[%clk 0:02:49]}  Nf6 {[%clk 0:02:59]} 2. c4 {[%clk 0:02:43]}  g6 {[%clk 0:02:59]} 3. h4 {[%clk 0:02:42]}  c5 {[%clk 0:02:57]} 4. d5 {[%clk 0:02:42]}  b5 {[%clk 0:02:57]} 5. cxb5 {[%clk 0:02:41]}  a6 {[%clk 0:02:57]} 6. e3 {[%clk 0:02:41]}  axb5 {[%clk 0:02:53]} 7. Bxb5 {[%clk 0:02:41]}  Qa5+ {[%clk 0:02:53]} 8. Nc3 {[%clk 0:02:41]}  Ne4 {[%clk 0:02:48]} 9. Ne2 {[%clk 0:02:41]}  Bg7 {[%clk 0:02:47]} 10. a4 {[%clk 0:02:29]}  Ba6 {[%clk 0:02:40]} 11. Ra3 {[%clk 0:02:22]}  Nd6 {[%clk 0:02:38]} 12. O-O {[%clk 0:02:14]}  Qb4 {[%clk 0:02:27]} 13. Nf4 {[%clk 0:01:38]}  Bxb5 {[%clk 0:02:22]} 14. Nxb5 {[%clk 0:01:20]}  Nxb5 {[%clk 0:02:20]} 15. axb5 {[%clk 0:01:18]}  Rxa3 {[%clk 0:02:20]} 16. bxa3 {[%clk 0:01:18]}  Qxb5 {[%clk 0:02:20]} 17. d6 {[%clk 0:01:15]}  e6 {[%clk 0:02:20]} 18. h5 {[%clk 0:00:50]}  g5 {[%clk 0:02:20]} 19. h6 {[%clk 0:00:43]}  Be5 {[%clk 0:02:20]} 20. Nh5 {[%clk 0:00:42]}  Qc6 {[%clk 0:02:13]} 21. Qg4 {[%clk 0:00:41]}  Rg8 {[%clk 0:01:44]} 22. f4 {[%clk 0:00:39]}  f5 {[%clk 0:01:44]} 23. fxe5 {[%clk 0:00:21]}  fxg4 {[%clk 0:01:44]} 24. Nf6+ {[%clk 0:00:21]}  Kf7 {[%clk 0:01:43]} 25. Nxd7+ {[%clk 0:00:18]}  Kg6 {[%clk 0:01:40]} 26. Nf6 {[%clk 0:00:10]}  Rf8 {[%clk 0:01:38]} 27. e4 {[%clk 0:00:08]}  Nd7 {[%clk 0:01:36]} 28. Bb2 {[%clk 0:00:07]}  Nxf6 {[%clk 0:01:36]} 29. exf6 {[%clk 0:00:06]}  Qxe4 {[%clk 0:01:35]} 0-1


[Site "https://www.chess.com"]

[Event "Titled Tuesday Blitz December 06 Early 2022"]
[White "Xu, Yi"]
[Black "Bortnyk, Olexandr"]
[WhiteFideId "8605564"]
[BlackFideId "14120828"]
[WhiteElo "2471"]
[BlackElo "2723"]
[Result "0-1"]
[Round "06"]
[TimeControl "180+1"]
[Date "2022.12.06"]
[WhiteClock "0:00:07"]
[BlackClock "0:00:21"]

1. e4 {[%clk 0:03:00]}  Nf6 {[%clk 0:02:43]} 2. e5 {[%clk 0:02:53]}  Nd5 {[%clk 0:02:43]} 3. d4 {[%clk 0:02:52]}  d6 {[%clk 0:02:43]} 4. Nf3 {[%clk 0:02:51]}  dxe5 {[%clk 0:02:43]} 5. Nxe5 {[%clk 0:02:51]}  c6 {[%clk 0:02:44]} 6. Be2 {[%clk 0:02:51]}  Bf5 {[%clk 0:02:44]} 7. a3 {[%clk 0:02:49]}  Nd7 {[%clk 0:02:44]} 8. Nf3 {[%clk 0:02:47]}  e6 {[%clk 0:02:44]} 9. O-O {[%clk 0:02:46]}  Bd6 {[%clk 0:02:44]} 10. Re1 {[%clk 0:02:39]}  O-O {[%clk 0:02:43]} 11. Bf1 {[%clk 0:02:29]}  h6 {[%clk 0:02:39]} 12. g3 {[%clk 0:02:24]}  Qc7 {[%clk 0:02:35]} 13. c4 {[%clk 0:02:23]}  N5f6 {[%clk 0:02:35]} 14. Nc3 {[%clk 0:02:23]}  Rfe8 {[%clk 0:02:32]} 15. Bg2 {[%clk 0:02:21]}  e5 {[%clk 0:02:33]} 16. c5 {[%clk 0:01:55]}  Bf8 {[%clk 0:02:26]} 17. dxe5 {[%clk 0:01:50]}  Ng4 {[%clk 0:01:55]} 18. b4 {[%clk 0:01:42]}  Rad8 {[%clk 0:01:54]} 19. Qb3 {[%clk 0:01:24]}  Ndxe5 {[%clk 0:01:53]} 20. Bf4 {[%clk 0:01:23]}  g5 {[%clk 0:01:38]} 21. Nxe5 {[%clk 0:01:15]}  Nxe5 {[%clk 0:01:39]} 22. Bxe5 {[%clk 0:01:14]}  Rxe5 {[%clk 0:01:40]} 23. Rad1 {[%clk 0:01:01]}  Bg7 {[%clk 0:01:31]} 24. Rxd8+ {[%clk 0:00:47]}  Qxd8 {[%clk 0:01:32]} 25. Rxe5 {[%clk 0:00:39]}  Bxe5 {[%clk 0:01:33]} 26. Ne4 {[%clk 0:00:36]}  Qd4 {[%clk 0:01:27]} 27. Qf3 {[%clk 0:00:29]}  Qa1+ {[%clk 0:01:10]} 28. Bf1 {[%clk 0:00:29]}  Be6 {[%clk 0:00:54]} 29. Qd3 {[%clk 0:00:29]}  Bb2 {[%clk 0:00:45]} 30. Nd6 {[%clk 0:00:28]}  Qxa3 {[%clk 0:00:42]} 31. Nxb7 {[%clk 0:00:21]}  Qxb4 {[%clk 0:00:42]} 32. Qa6 {[%clk 0:00:19]}  Bd4 {[%clk 0:00:31]} 33. Qxc6 {[%clk 0:00:16]}  Qe1 {[%clk 0:00:22]} 34. Qf3 {[%clk 0:00:08]}  Bc4 {[%clk 0:00:21]} 35. Qg2 {[%clk 0:00:07]}  Bd5 {[%clk 0:00:21]} 0-1


[Site "https://www.chess.com"]

[Event "Titled Tuesday Blitz December 06 Early 2022"]
[White "Yaran, Siar"]
[Black "Chernomordik, Pavel"]
[WhiteFideId "6323006"]
[BlackFideId "2804530"]
[WhiteElo "2191"]
[BlackElo "2193"]
[Result "1-0"]
[Round "06"]
[TimeControl "180+1"]
[Date "2022.12.07"]
[WhiteClock "0:00:02"]
[BlackClock "0:00:04"]

1. d4 {[%clk 0:03:00]}  g6 {[%clk 0:02:59]} 2. c4 {[%clk 0:03:01]}  Bg7 {[%clk 0:02:58]} 3. Nc3 {[%clk 0:03:01]}  d6 {[%clk 0:02:57]} 4. e4 {[%clk 0:03:02]}  c6 {[%clk 0:02:56]} 5. Be2 {[%clk 0:03:01]}  a6 {[%clk 0:02:56]} 6. a4 {[%clk 0:03:00]}  a5 {[%clk 0:02:56]} 7. f4 {[%clk 0:02:58]}  Qb6 {[%clk 0:02:52]} 8. e5 {[%clk 0:02:50]}  Nh6 {[%clk 0:02:50]} 9. Ra3 {[%clk 0:02:41]}  Nf5 {[%clk 0:02:47]} 10. Nf3 {[%clk 0:02:41]}  O-O {[%clk 0:02:42]} 11. g4 {[%clk 0:02:34]}  Nh6 {[%clk 0:02:36]} 12. h3 {[%clk 0:02:35]}  f6 {[%clk 0:02:36]} 13. Rb3 {[%clk 0:02:25]}  Qc7 {[%clk 0:02:32]} 14. O-O {[%clk 0:02:20]}  Nf7 {[%clk 0:02:28]} 15. exf6 {[%clk 0:02:18]}  exf6 {[%clk 0:02:24]} 16. f5 {[%clk 0:02:05]}  gxf5 {[%clk 0:02:20]} 17. Nh4 {[%clk 0:02:04]}  fxg4 {[%clk 0:02:17]} 18. Bxg4 {[%clk 0:02:04]}  d5 {[%clk 0:02:04]} 19. cxd5 {[%clk 0:01:58]}  Qg3+ {[%clk 0:02:02]} 20. Ng2 {[%clk 0:01:59]}  Bxg4 {[%clk 0:01:58]} 21. Qxg4 {[%clk 0:01:57]}  Qxg4 {[%clk 0:01:57]} 22. hxg4 {[%clk 0:01:58]}  Rd8 {[%clk 0:01:51]} 23. Rxb7 {[%clk 0:01:48]}  cxd5 {[%clk 0:01:51]} 24. Nf4 {[%clk 0:01:45]}  Nc6 {[%clk 0:01:48]} 25. Ne6 {[%clk 0:01:03]}  Rd6 {[%clk 0:01:34]} 26. Nxg7 {[%clk 0:00:56]}  Kxg7 {[%clk 0:01:33]} 27. Bf4 {[%clk 0:00:56]}  Re6 {[%clk 0:01:20]} 28. Nxd5 {[%clk 0:00:56]}  Rd8 {[%clk 0:01:20]} 29. Nc7 {[%clk 0:00:53]}  Re2 {[%clk 0:01:11]} 30. d5 {[%clk 0:00:52]}  Nd4 {[%clk 0:01:11]} 31. b4 {[%clk 0:00:44]}  Rg8 {[%clk 0:00:52]} 32. Ne6+ {[%clk 0:00:19]}  Nxe6 {[%clk 0:00:51]} 33. dxe6 {[%clk 0:00:19]}  Rxe6 {[%clk 0:00:51]} 34. bxa5 {[%clk 0:00:20]}  Ra8 {[%clk 0:00:44]} 35. Bc7 {[%clk 0:00:17]}  Re4 {[%clk 0:00:43]} 36. g5 {[%clk 0:00:17]}  Nxg5 {[%clk 0:00:39]} 37. Bd8+ {[%clk 0:00:15]}  Kg6 {[%clk 0:00:37]} 38. Rxf6+ {[%clk 0:00:15]}  Kh5 {[%clk 0:00:35]} 39. Rd7 {[%clk 0:00:13]}  Rxa4 {[%clk 0:00:31]} 40. Rf5 {[%clk 0:00:13]}  Kg4 {[%clk 0:00:29]} 41. Rxg5+ {[%clk 0:00:13]}  Kf4 {[%clk 0:00:29]} 42. Rf7+ {[%clk 0:00:13]}  Ke3 {[%clk 0:00:28]} 43. Bb6+ {[%clk 0:00:14]}  Kd3 {[%clk 0:00:26]} 44. Rg3+ {[%clk 0:00:12]}  Kc2 {[%clk 0:00:16]} 45. Rg2+ {[%clk 0:00:10]}  Kd3 {[%clk 0:00:15]} 46. Rf3+ {[%clk 0:00:10]}  Ke4 {[%clk 0:00:14]} 47. Re3+ {[%clk 0:00:09]}  Kf4 {[%clk 0:00:14]} 48. Rf2+ {[%clk 0:00:10]}  Kg4 {[%clk 0:00:13]} 49. Kh2 {[%clk 0:00:08]}  Kh5 {[%clk 0:00:08]} 50. Re5+ {[%clk 0:00:06]}  Kg4 {[%clk 0:00:07]} 51. Ref5 {[%clk 0:00:04]}  Kh4 {[%clk 0:00:04]} 52. Rg2 {[%clk 0:00:02]} 1-0


[Site "https://www.chess.com"]